bitfinex-derivatives/quotes_ETHF0:USTF0_20241228
["timestamp","ask_amount","ask_price","bid_price","bid_amount"]
[1735377753378,0.29887,3351.4,3351.3,2.31315235]
[1735377753569,0.74557,3351.4,3351.3,2.31315235]
[1735377754479,0.74557,3351.4,3351.3,0.4313]
[1735377757175,0.74557,3351.4,3351.3,0.73018]
[1735377757678,0.74557,3351.4,3351.3,1.47960413]
[1735377758293,0.74557,3351.4,3351.3,0.74942413]
[1735377760182,0.29888,3351.3,3351.2,4.96076257]
[1735377760381,0.76158,3351.3,3351.2,5.7101867]
[1735377761070,0.76158,3351.3,3351.2,4.66187257]
[1735377761278,0.76158,3351.3,3351.2,5.4112967]
[1735377763983,0.76158,3351.3,3351.2,0.74942413]
[1735377764986,0.76158,3351.3,3351.2,5.4112967]
[1735377765982,0.76158,3351.3,3351.2,0.74942413]
[1735377772882,0.76158,3351.3,3351.2,5.4112967]
[1735377774388,0.29888,3351.3,3351.2,5.4112967]
[1735377774589,0.29888,3351.3,3351.2,7.48206886]
[1735377775189,0.29888,3351.3,3351.2,7.18317886]
[1735377776192,0.29888,3351.3,3351.2,7.48206886]
[1735377777199,0.29888,3351.3,3351.2,14.52242169]
[1735377777591,0.29887,3351.5,3351.4,0.29887]
[1735377777793,0.29887,3351.5,3351.4,1.04829413]
[1735377778092,0.29887,3351.5,3351.4,0.74942413]
[1735377778892,0.29887,3351.5,3351.4,7.18317886]
[1735377779891,0.29887,3351.5,3351.4,0.74942413]
[1735377783591,3.2078,3351.6,3351.5,0.29886]
[1735377783887,3.2078,3351.6,3351.5,0.73306]
[1735377784092,3.2078,3351.6,3351.5,1.19496]
[1735377784697,0.29884,3351.7,3351.6,0.29885]
[1735377784896,0.29884,3351.7,3351.6,1.47847413]
[1735377786385,3.2078,3351.9,3351.6,1.17962413]
[1735377786588,0.29884,3351.7,3351.6,0.72905]
[1735377787492,0.29885,3351.6,3351.5,1.19496]
[1735377787789,0.72595,3351.6,3351.5,1.94438413]
[1735377788098,0.72595,3351.6,3351.5,8.37238562]
[1735377789001,0.29884,3351.8,3351.7,0.29884]
[1735377789187,0.29884,3351.8,3351.7,1.04826413]
[1735377789797,0.29884,3351.8,3351.7,0.74942413]
[1735377790297,0.29884,3351.8,3351.7,11.85314747]
[1735377791297,0.29884,3351.8,3351.7,5.42514598]
[1735377793093,0.29884,3351.8,3351.7,4.67572185]
[1735377794398,1.18722413,3352.0,3351.5,4.67572185]
[1735377794399,0.29885,3351.6,3351.5,4.67572185]
[1735377795399,0.29885,3351.6,3351.5,0.4333]
[1735377795794,0.29884,3351.8,3351.7,0.29884]
[1735377795995,0.433,3352.0,3351.6,0.74942413]
[1735377796299,0.29883,3351.9,3351.8,0.29883]
[1735377796500,0.29883,3351.9,3351.8,1.04825413]
[1735377796899,0.29883,3351.9,3351.8,1.93235413]
[1735377797097,0.433,3352.0,3351.9,0.29883]
[1735377799906,0.2988,3352.2,3352.1,0.29881]
[1735377800206,0.74819,3352.3,3352.2,0.2988]
[1735377801099,0.4494,3352.3,3352.2,0.2988]
[1735377801299,0.4494,3352.3,3352.2,0.7346]
[1735377803893,0.4572,3352.4,3352.2,0.4358]
[1735377804091,0.4572,3352.4,3352.3,1.04821413]
[1735377807101,3.2078,3352.5,3352.4,0.29878]
[1735377810115,0.8852,3353.1,3352.4,0.29878]
[1735377810319,3.666,3353.0,3352.9,0.29874]
[1735377811516,3.666,3353.0,3352.9,1.04816413]
[1735377816718,0.4582,3353.0,3352.9,1.04816413]
[1735377841330,0.4542,3353.1,3353.0,0.29873]
[1735377841529,0.4542,3353.1,3353.0,0.73213]
[1735377841725,0.4542,3353.1,3353.0,1.19393]
[1735377841929,0.4542,3353.1,3353.0,1.94335413]
[1735377845637,0.4561,3353.3,3353.2,0.29871]
[1735377845837,0.4561,3353.3,3353.2,1.04813413]
[1735377849442,0.4475,3353.6,3353.5,0.29868]
[1735377849746,0.88,3353.6,3353.5,0.29868]
[1735377850643,1.17867,3353.6,3353.5,0.29868]
[1735377853348,1.17867,3353.6,3353.2,0.74942413]
[1735377853548,1.17867,3353.6,3353.5,0.29868]
[1735377857647,1.62942413,3353.6,3353.0,1.64462413]
[1735377857948,0.2987,3353.3,3353.2,0.29871]
[1735377858339,1.62942413,3353.6,3353.0,1.64462413]
[1735377858541,0.4353,3353.2,3353.1,0.29872]
[1735377872060,3.6553,3353.6,3353.5,0.29868]
[1735377874462,3.95397,3353.6,3353.5,0.29868]
[1735377874662,3.6553,3353.6,3353.5,0.29868]
[1735377876150,0.4475,3353.6,3353.5,0.29868]
[1735377877865,0.74617,3353.6,3353.5,0.29868]
[1735377878957,0.74617,3353.6,3353.5,1.22168]
[1735377879159,0.74617,3353.6,3353.5,0.923]
[1735377879662,0.74617,3353.6,3353.5,1.22168]
[1735377879859,0.74617,3353.6,3353.5,0.923]
[1735377882558,1.19692413,3353.6,3353.0,7.88352185]
[1735377882868,1.04813413,3353.2,3353.1,0.45]
[1735377884664,0.29871,3353.2,3353.1,0.45]
[1735377893772,0.29871,3353.2,3353.1,0.74872]
[1735377896276,0.29871,3353.2,3353.1,0.45]
[1735377897074,0.29871,3353.2,3353.1,0.74872]
[1735377898072,0.29871,3353.2,3353.1,0.45]
[1735377902176,0.29871,3353.2,3353.1,0.74872]
[1735377903470,0.29871,3353.2,3353.1,0.45]
[1735377905083,0.29871,3353.2,3353.1,0.74872]
[1735377905677,0.29871,3353.2,3353.1,0.45]
[1735377909793,0.29871,3353.2,3353.1,0.74872]
[1735377913088,0.4625,3353.3,3353.1,0.74872]
[1735377913392,0.4625,3353.3,3353.2,0.29871]
[1735377913692,0.4625,3353.3,3353.2,1.04813413]
[1735377915195,0.4625,3353.3,3353.2,1.50883413]
[1735377915592,3.2078,3353.5,3353.4,0.29869]
[1735377916996,3.50648,3353.5,3353.4,0.29869]
[1735377918200,3.2078,3353.5,3353.4,0.29869]
[1735377918700,3.50648,3353.5,3353.4,0.29869]
[1735377919492,3.50648,3353.5,3353.3,0.76159]
[1735377919694,3.50648,3353.5,3353.4,0.29869]
[1735377920593,0.29868,3353.5,3353.4,0.29869]
[1735377920790,0.29868,3353.5,3353.3,0.7616]
[1735377921196,0.29869,3353.4,3353.3,0.7616]
[1735377922797,0.29869,3353.5,3353.3,0.7616]
[1735377923397,0.29868,3353.5,3353.3,0.7616]
[1735377923599,0.29869,3353.4,3353.3,0.7616]
[1735377923799,0.29869,3353.4,3353.3,0.4629]
[1735377929404,0.29869,3353.4,3353.3,0.7616]
[1735377929705,0.29869,3353.4,3353.3,0.4629]
[1735377934212,0.29869,3353.4,3353.3,0.7616]
[1735377935614,0.29869,3353.4,3353.3,0.4629]
[1735377936309,0.29871,3353.2,3353.1,0.45]
[1735377937109,0.73241,3353.2,3353.1,0.45]
[1735377942417,0.29873,3353.0,3352.9,4.25596413]
[1735377942604,0.29873,3353.0,3352.9,4.72476413]
[1735377942809,0.29873,3353.0,3352.9,3.2078]
[1735377943012,0.74942413,3353.1,3352.7,4.67572185]
[1735377943222,0.29875,3352.8,3352.7,4.67572185]
[1735377943417,3.50655,3352.8,3352.7,4.67572185]
[1735377944013,3.2078,3352.8,3352.3,0.4491]
[1735377944313,0.29878,3352.4,3352.3,0.4491]
[1735377944911,0.75078,3352.4,3352.3,0.4491]
[1735377945212,0.452,3352.4,3352.2,0.4378]
[1735377945514,0.29879,3352.3,3352.2,0.4378]
[1735377947411,0.29881,3352.1,3352.0,0.4491]
[1735377947613,0.29882,3352.0,3351.9,0.74942413]
[1735377947807,0.29882,3352.0,3351.6,3.2078]
[1735377947808,0.29884,3351.7,3351.6,3.2078]
[1735377951120,0.29884,3351.7,3351.6,3.95722413]
[1735377953521,0.29884,3351.7,3351.6,3.2078]
[1735377954921,0.75734,3351.7,3351.6,3.2078]
[1735377956625,0.29884,3351.7,3351.6,3.2078]
[1735377957126,0.29884,3351.7,3351.6,3.6705]
[1735377957825,1.04826413,3351.8,3351.6,3.6705]
[1735377958129,1.04826413,3351.8,3351.7,0.4531]
[1735377958524,1.04826413,3351.8,3351.6,3.6705]
[1735377958721,0.29884,3351.7,3351.6,3.2078]
[1735377959328,0.74942413,3351.8,3351.4,0.4314]
[1735377959630,1.51568413,3351.6,3351.4,0.4314]
[1735377959929,0.29885,3351.7,3351.5,0.29886]
[1735377960324,0.74942413,3351.8,3351.4,0.73026]
[1735377960523,0.29885,3351.7,3351.5,0.29886]
[1735377960929,1.04826413,3351.8,3351.5,0.29886]
[1735377961420,0.29883,3351.9,3351.6,0.29884]
[1735377961624,0.29883,3351.8,3351.7,0.4375]
[1735377961820,3.2078,3352.0,3351.8,0.29883]
[1735377962031,3.2078,3352.0,3351.9,0.4557]
[1735377963036,3.50662,3352.0,3351.9,0.4557]
[1735377964626,0.29882,3352.0,3351.9,0.4557]
[1735377966835,4.38592413,3352.1,3351.7,0.8863]
[1735377966836,0.29883,3351.8,3351.7,0.8863]
[1735377967026,1.04825413,3351.8,3351.7,0.4488]
[1735377968131,0.29885,3351.6,3351.5,0.4266]
[1735377968332,0.29885,3351.6,3351.5,0.8896]
[1735377970639,1.04827413,3351.6,3351.5,0.8896]
[1735377972839,1.04827413,3351.6,3351.5,0.4266]
[1735377976747,0.29885,3351.6,3351.5,0.4266]
[1735377978946,0.4454,3351.7,3351.5,0.4266]
[1735377979254,0.29885,3351.6,3351.5,0.4266]
[1735377979553,3.6726,3351.9,3351.6,0.29884]
[1735377979554,3.2078,3351.9,3351.6,0.29884]
[1735377979749,0.29884,3351.8,3351.6,0.29884]
[1735377980146,0.29884,3351.8,3351.7,40.8]
[1735377980354,0.29884,3351.8,3351.6,0.29884]
[1735377981447,0.74942413,3351.8,3351.5,0.4266]
[1735377981648,0.29885,3351.6,3351.5,0.4266]
[1735377983858,0.29888,3351.3,3351.2,3.2078]
[1735377988556,0.29888,3351.3,3351.0,0.4345]
[1735377988557,0.74942413,3351.4,3350.8,3.2078]
[1735377988755,0.74942413,3351.0,3350.8,3.2078]
[1735377988950,3.6449,3351.5,3351.3,0.29888]
[1735377989153,3.2078,3351.5,3351.4,0.4553]
[1735377989455,3.2078,3351.5,3351.4,1.3462]
[1735377989763,0.4569,3351.7,3351.4,1.3462]
[1735377990056,0.4569,3351.7,3351.6,0.29885]
[1735377991459,0.74942413,3351.8,3351.5,4.67572185]
[1735377991657,3.95722413,3352.0,3351.9,0.29883]
[1735377994661,0.74942413,3352.0,3351.9,0.29883]
[1735377994859,3.95722413,3352.0,3351.9,0.29883]
[1735377995259,3.95722413,3352.0,3351.8,4.97455185]
[1735377995455,3.95722413,3352.0,3351.9,0.29883]
[1735377996565,4.70664826,3352.0,3351.8,4.67572185]
[1735377996759,0.75553,3351.9,3351.8,4.67572185]
[1735377996959,1.20533,3351.9,3351.8,4.67572185]
[1735377997664,2.49002034,3351.9,3351.5,4.67572185]
[1735377997864,0.29885,3351.6,3351.5,4.67572185]
[1735377998367,3.2078,3351.7,3351.5,4.67572185]
[1735377998564,0.4256,3351.6,3351.5,4.67572185]
[1735377998862,0.4256,3351.6,3351.5,4.97458185]
[1735377999063,3.2078,3351.7,3351.6,0.29885]
[1735377999858,3.2078,3351.7,3351.6,0.76805]
[1735378000668,3.2078,3351.7,3351.6,5.44377185]
[1735378003959,3.2078,3351.7,3351.6,14.22199086]
[1735378005173,3.50661,3352.1,3351.9,0.29882]
[1735378005565,3.50661,3352.1,3351.8,0.29883]
[1735378006769,0.29881,3352.1,3351.8,0.29883]
[1735378006971,0.29882,3352.0,3351.8,0.29883]
[1735378007364,0.29882,3352.0,3351.6,5.15372937]
[1735378007566,0.4237,3351.9,3351.7,0.29884]
[1735378008669,0.72253,3351.9,3351.7,0.29884]
[1735378009471,2.00722034,3351.9,3351.6,4.68452937]
[1735378009670,0.29884,3351.7,3351.6,4.68452937]
[1735378010566,0.29884,3351.7,3351.5,3.2078]
[1735378012269,0.29885,3351.6,3351.5,3.2078]
[1735378013373,0.29885,3351.6,3351.5,9.64940521]
[1735378013871,1.88237034,3351.6,3351.5,9.64940521]
[1735378014472,1.88237034,3351.6,3351.5,6.44160521]
[1735378015275,1.58352034,3351.6,3351.2,5.12498331]
[1735378015476,1.88240034,3351.3,3351.2,5.12498331]
[1735378015971,1.58352034,3351.3,3351.2,5.12498331]
[1735378016569,1.58352034,3351.3,3351.2,0.4375]
[1735378017373,1.58352034,3351.3,3351.2,7.31464316]
[1735378020974,1.58352034,3351.3,3351.2,5.55831724]
[1735378022480,1.88240034,3351.3,3351.2,5.55831724]
[1735378023769,1.58352034,3351.3,3351.2,5.55831724]
[1735378025771,0.74965964,3351.3,3351.2,5.55831724]
[1735378026478,0.74965964,3351.3,3351.2,0.8724]
[1735378026675,3.2078,3352.2,3351.2,11.56505964]
[1735378026977,3.95745964,3352.2,3352.1,0.29881]
[1735378027177,0.74965964,3352.2,3352.1,40.8]
[1735378027481,0.74965964,3352.2,3352.1,0.29881]
[1735378027779,0.74965964,3352.2,3352.1,4.98472724]
[1735378028182,0.74128,3352.5,3352.1,4.98472724]
[1735378028377,0.74965964,3352.2,3352.1,4.98472724]
[1735378029777,2.32398204,3352.5,3352.2,0.2988]
[1735378030076,3.2078,3352.7,3352.6,0.29876]
[1735378030384,3.2078,3353.1,3352.2,4.943]
[1735378030582,3.2078,3353.1,3353.0,0.29873]
[1735378031076,3.2078,3353.1,3352.6,4.68591724]
[1735378031282,4.79051204,3353.1,3352.9,0.29873]
[1735378032177,5.23401204,3353.1,3352.9,0.29873]
[1735378032979,2.02621204,3353.1,3352.9,0.29873]
[1735378033278,5.23401204,3353.1,3352.9,0.29873]
[1735378034378,0.98294136,3353.9,3352.9,0.29873]
[1735378034379,0.23629136,3353.9,3353.0,8.1508]
[1735378034678,3.2078,3354.9,3353.7,3.2078]
[1735378034878,3.2078,3354.9,3354.7,0.29858]
[1735378035180,11.11309858,3354.8,3354.7,3.50638]
[1735378035880,1.88121204,3355.6,3354.7,8.1508]
[1735378036082,1.88121204,3355.6,3355.1,0.29854]
[1735378036881,1.0,3356.4,3356.1,0.29844]
[1735378037189,1.0,3356.4,3356.3,0.29843]
[1735378038787,0.23988663,3358.0,3357.6,0.29831]
[1735378038983,3.2078,3358.2,3357.5,3.2078]
[1735378039487,3.2078,3358.2,3357.8,0.2983]
[1735378040281,3.2078,3358.2,3358.1,0.29827]
[1735378040784,0.74525,3360.1,3358.1,0.29827]
[1735378040785,3.2078,3359.4,3358.3,4.943]
[1735378041085,3.2078,3359.4,3359.1,0.29818]
[1735378041281,0.2981,3360.1,3359.3,3.50597]
[1735378041474,4.79051204,3360.4,3359.3,3.2078]
[1735378041682,0.29809,3360.2,3359.4,0.29815]
[1735378041988,0.29809,3360.2,3359.4,0.29816]
[1735378042590,0.29809,3360.2,3359.3,3.50596]
[1735378042784,4.79051204,3360.4,3359.3,3.2078]
[1735378042981,1.58271204,3360.1,3359.3,3.2078]
[1735378043180,1.58271204,3359.5,3358.1,4.943]
[1735378043482,1.58271204,3359.0,3358.1,8.1508]
[1735378043689,2.3283855,3359.1,3358.1,8.1508]
[1735378044585,0.2982,3358.9,3358.1,13.1508]
[1735378044777,0.2982,3358.9,3358.1,8.1508]
[1735378044976,2.0301955,3359.1,3358.2,4.943]
[1735378044977,0.29821,3358.8,3358.2,4.943]
[1735378045982,3.2078,3359.2,3358.2,4.943]
[1735378046288,0.29822,3358.7,3358.2,4.943]
[1735378046483,0.29822,3358.7,3358.1,8.1508]
[1735378046788,3.2078,3359.2,3358.1,8.1508]
[1735378046789,0.29825,3358.4,3358.1,8.1508]
[1735378046986,0.29826,3358.2,3358.1,8.1508]
[1735378047386,0.29826,3358.2,3358.1,3.2078]
[1735378048186,3.2078,3360.5,3358.3,2.801]
[1735378048378,3.2078,3360.9,3360.2,2.0301955]
[1735378048577,3.2078,3360.9,3360.2,2.3282755]
[1735378048987,3.2078,3360.9,3360.2,2.0301955]
[1735378049278,3.2078,3360.9,3360.2,2.3282855]
[1735378049581,3.50583,3360.9,3360.2,2.3282855]
[1735378049979,3.2078,3360.9,3360.2,2.0301955]
[1735378050180,3.2078,3361.5,3360.5,3.2078]
[1735378050879,0.29801,3361.1,3360.5,3.2078]
[1735378051391,0.29803,3360.9,3360.5,3.2078]
[1735378052286,3.2078,3361.5,3360.5,3.2078]
[1735378052490,0.29803,3360.8,3360.5,3.2078]
[1735378052690,3.2078,3361.5,3360.5,3.2078]
[1735378052985,0.29804,3360.8,3360.5,3.2078]
[1735378053788,3.2078,3361.5,3360.5,3.2078]
[1735378054084,3.2078,3361.5,3360.9,3.2078]
[1735378054390,0.29802,3361.0,3360.9,3.2078]
[1735378055589,3.2078,3361.5,3360.9,3.2078]
[1735378055994,0.298,3361.2,3360.9,3.2078]
[1735378056491,0.29805,3360.6,3360.5,3.2078]
[1735378056687,0.29809,3360.2,3360.1,3.2078]
[1735378058595,0.74513,3360.7,3359.7,3.2078]
[1735378058596,3.2078,3360.6,3359.7,3.2078]
[1735378058795,0.29816,3359.4,3359.3,3.2078]
[1735378060895,0.29819,3359.0,3358.9,3.2078]
[1735378061390,3.2078,3359.6,3358.4,3.2078]
[1735378061589,0.29824,3358.5,3358.4,3.2078]
[1735378061992,3.2078,3359.2,3358.4,3.2078]
[1735378062791,0.29824,3358.5,3358.4,3.2078]
[1735378062995,0.8818,3359.5,3358.4,8.2078]
[1735378063199,0.2982,3359.0,3358.8,3.2078]
[1735378063493,0.8818,3359.5,3358.8,3.2078]
[1735378063693,0.2982,3358.9,3358.8,3.2078]
[1735378066200,0.8818,3359.5,3358.8,3.2078]
[1735378067200,0.2982,3358.9,3358.8,3.2078]
[1735378071794,0.29824,3358.5,3358.4,3.2078]
[1735378072401,0.74556,3358.7,3357.8,3.2078]
[1735378072614,0.29829,3357.9,3357.8,3.2078]
[1735378073110,0.2983,3357.8,3357.7,40.8]
[1735378074416,0.61483101,3358.2,3357.7,40.8]
[1735378075116,0.2983,3357.8,3357.7,40.8]
[1735378076109,3.2078,3358.3,3357.4,3.2078]
[1735378076306,0.29833,3357.5,3357.4,3.2078]
[1735378077710,0.29837,3357.0,3356.9,40.8]
[1735378081611,0.74586,3357.4,3356.9,40.8]
[1735378081612,0.29834,3357.4,3356.9,40.8]
[1735378081815,0.29833,3357.5,3356.9,40.8]
[1735378082122,0.29836,3357.2,3356.9,41.2538]
[1735378082711,0.29836,3357.1,3356.9,41.2538]
[1735378082916,0.29837,3357.0,3356.9,41.2538]
[1735378083118,0.29837,3357.0,3356.9,50.61955633]
[1735378084314,0.29837,3357.0,3356.9,54.49967182]
[1735378084519,0.30135403,3357.0,3356.9,54.49967182]
[1735378085021,0.30135403,3357.0,3356.9,13.69967182]
[1735378086523,0.30135403,3357.0,3356.9,5.07563481]
[1735378087018,0.30135403,3357.0,3356.9,4.62183481]
[1735378087516,0.29838,3356.9,3356.8,3.2078]
[1735378088721,0.00298403,3357.0,3356.2,7.82963481]
[1735378088917,0.29843,3356.3,3356.2,7.82963481]
[1735378089725,0.29843,3356.3,3356.2,3.2078]
[1735378097430,0.29839,3356.9,3356.5,0.29841]
[1735378097629,0.00298403,3357.0,3356.6,3.2078]
[1735378097830,0.2984,3356.7,3356.6,3.2078]
[1735378098129,0.00298403,3357.0,3356.6,3.2078]
[1735378098130,0.00298403,3357.0,3356.6,44.0078]
[1735378098433,0.29838,3356.9,3356.6,44.0078]
[1735378098635,0.29839,3356.8,3356.6,44.0078]
[1735378099423,0.00298403,3357.0,3356.6,3.2078]
[1735378099627,0.2984,3356.7,3356.6,3.2078]
[1735378100731,0.00298403,3357.0,3356.6,3.2078]
[1735378101131,0.00298403,3357.0,3356.9,0.29838]
[1735378101631,0.30136403,3357.0,3356.7,3.09939]
[1735378101936,0.29839,3356.8,3356.7,2.801]
[1735378103239,0.00298403,3357.0,3356.7,2.801]
[1735378103533,0.29838,3356.9,3356.7,3.09939]
[1735378103839,0.00298403,3357.0,3356.7,2.801]
[1735378104036,0.29839,3356.8,3356.7,2.801]
[1735378105532,0.29843,3356.4,3356.2,3.2078]
[1735378105725,0.29842,3356.5,3356.2,3.2078]
[1735378106350,0.29843,3356.4,3356.2,3.2078]
[1735378106737,0.29842,3356.5,3356.2,3.50624]
[1735378106935,0.29843,3356.4,3356.2,3.2078]
[1735378107238,1.63387,3356.9,3356.2,3.2078]
[1735378108137,0.29842,3356.5,3356.2,3.2078]
[1735378108940,0.29842,3356.5,3356.2,3.50624]
[1735378109444,0.29843,3356.4,3356.2,3.2078]
[1735378110336,0.29838,3356.9,3356.3,0.29843]
[1735378110536,0.29839,3356.9,3356.6,0.2984]
[1735378111037,0.29839,3356.9,3356.6,41.0984]
[1735378111543,0.29839,3356.9,3356.6,40.8]
[1735378111845,0.2984,3356.8,3356.5,0.29841]
[1735378112438,0.00298403,3357.0,3356.3,0.29843]
[1735378112643,0.29841,3356.6,3356.2,3.2078]
[1735378112842,0.29842,3356.5,3356.2,3.50624]
[1735378113044,0.00298403,3357.0,3356.3,0.29843]
[1735378113247,0.29841,3356.6,3356.3,0.29843]
[1735378114245,0.00298403,3357.0,3356.2,3.2078]
[1735378114445,0.29841,3356.6,3356.3,0.29843]
[1735378115842,0.29841,3356.6,3356.3,3.50623]
[1735378116143,0.29842,3356.4,3356.3,3.2078]
[1735378116945,0.74192,3356.4,3356.3,3.2078]
[1735378122743,0.74192,3356.4,3355.6,0.4274]
[1735378122947,0.29845,3356.2,3355.9,3.2078]
[1735378123252,0.4574,3356.3,3355.9,3.2078]
[1735378123454,0.4574,3356.3,3356.1,0.29845]
[1735378125156,0.75584,3356.3,3356.0,0.29846]
[1735378125456,0.4574,3356.3,3356.0,0.29846]
[1735378125956,0.4574,3356.3,3356.1,0.29845]
[1735378126151,3.2078,3356.7,3355.9,3.2078]
[1735378126352,2.90232708,3356.9,3356.0,40.8]
[1735378126554,0.29842,3356.5,3356.2,0.29844]
[1735378127256,1.57852708,3356.6,3355.9,3.2078]
[1735378127456,0.29843,3356.4,3356.1,0.29845]
[1735378130656,6.11012708,3356.9,3355.9,3.2078]
[1735378130864,6.11012708,3356.9,3356.3,0.29843]
[1735378130865,0.29841,3356.6,3356.3,0.29843]
[1735378131459,0.29842,3356.5,3356.2,0.29844]
[1735378131660,6.11012708,3356.9,3356.1,0.29845]
[1735378131661,0.29843,3356.4,3356.1,0.29845]
[1735378132162,0.29844,3356.3,3356.0,0.29845]
[1735378132364,1.3632,3356.2,3356.0,0.29845]
[1735378133261,1.3632,3356.2,3356.1,0.29845]
[1735378134467,1.66165,3356.2,3355.9,3.50627]
[1735378134854,1.3632,3356.2,3356.0,0.29846]
[1735378135965,1.3632,3356.2,3356.0,3.50626]
[1735378137363,1.66165,3356.2,3356.0,3.2078]
[1735378138067,1.3632,3356.2,3356.0,3.50626]
[1735378140569,1.3632,3356.2,3356.1,0.29845]
[1735378140770,1.3632,3356.2,3356.0,3.2078]
[1735378141271,0.29845,3356.1,3356.0,3.2078]
[1735378142667,0.2985,3355.6,3355.5,4.62183481]
[1735378143170,0.29851,3355.4,3355.3,3.2078]
[1735378145772,1.87703708,3355.4,3355.3,3.2078]
[1735378147971,0.29855,3355.0,3354.9,3.2078]
[1735378148166,1.87707708,3355.0,3354.9,3.2078]
[1735378149072,0.29858,3354.7,3354.6,4.62183481]
[1735378149771,0.449,3354.9,3354.5,3.2078]
[1735378149772,0.29859,3354.6,3354.5,3.2078]
[1735378152176,0.29861,3354.4,3354.0,0.446]
[1735378152374,0.29861,3354.4,3354.0,0.74464]
[1735378152674,0.29862,3354.3,3353.9,8.56167481]
[1735378153073,0.29862,3354.3,3353.9,3.6412]
[1735378153681,0.29862,3354.2,3353.9,3.6412]
[1735378155779,0.8799,3354.8,3353.9,3.6412]
[1735378156079,0.29862,3354.3,3353.9,3.93985]
[1735378156276,0.29862,3354.3,3353.9,3.6412]
[1735378156766,0.29862,3354.2,3353.9,3.6412]
[1735378157978,0.29862,3354.2,3353.9,0.4334]
[1735378158180,0.29862,3354.2,3354.0,3.2078]
[1735378158773,0.29862,3354.2,3353.9,0.4334]
[1735378158976,0.29862,3354.2,3354.0,3.2078]
[1735378159677,3.2078,3354.8,3354.0,3.2078]
[1735378159877,0.29854,3355.1,3354.5,0.29859]
[1735378160078,0.4246,3355.2,3354.4,3.2078]
[1735378160273,0.29855,3355.1,3354.6,0.29858]
[1735378160475,0.4246,3355.2,3354.7,0.4377]
[1735378160680,0.72313,3355.2,3354.8,0.29856]
[1735378161379,0.4246,3355.2,3354.7,0.4377]
[1735378161580,0.29857,3354.8,3354.4,3.5064]
[1735378161881,3.95412,3355.3,3354.4,3.5064]
[1735378161882,3.2078,3355.3,3354.9,0.29856]
[1735378162070,3.2078,3355.3,3355.0,0.4377]
[1735378162380,0.2985,3355.6,3355.0,0.4377]
[1735378162576,1.57852708,3355.6,3355.0,0.4377]
[1735378163080,0.29851,3355.4,3355.0,0.4377]
[1735378163283,0.29852,3355.3,3355.0,0.4377]
[1735378167285,1.3323,3355.5,3355.0,0.4377]
[1735378167479,0.29854,3355.2,3355.0,0.4377]
[1735378170784,0.29854,3355.1,3355.0,0.4377]
[1735378170994,0.29854,3355.1,3354.8,3.6358]
[1735378172692,0.29855,3355.1,3354.8,3.6358]
[1735378173190,1.57852708,3355.0,3354.3,3.9525]
[1735378173385,0.29858,3354.7,3354.3,3.9525]
[1735378174788,0.29859,3354.6,3354.3,3.6539]
[1735378174987,0.2986,3354.5,3354.3,3.6539]
[1735378175184,0.75849,3354.6,3354.3,3.6539]
[1735378175791,0.4599,3354.6,3354.3,3.6539]
[1735378175990,0.2986,3354.4,3354.3,3.2078]
[1735378182090,0.29862,3354.2,3354.0,40.8]
[1735378182290,0.29862,3354.2,3354.1,3.2078]
[1735378185600,0.29854,3355.2,3354.1,3.2078]
[1735378185799,0.29854,3355.2,3354.7,0.29857]
[1735378185999,0.29854,3355.2,3354.8,0.4514]
[1735378186900,0.29854,3355.1,3354.8,0.4514]
[1735378187201,0.29853,3355.2,3354.8,0.4514]
[1735378187497,0.29855,3355.1,3354.8,0.4514]
[1735378188999,0.4236,3355.3,3354.8,0.4514]
[1735378189395,0.29854,3355.1,3354.8,0.4514]
[1735378196003,0.4236,3355.3,3354.8,0.4514]
[1735378196203,0.72213,3355.3,3354.9,0.29856]
[1735378196599,0.29854,3355.2,3354.8,1.20216]
[1735378198106,0.29853,3355.2,3354.8,0.9036]
[1735378200111,0.29854,3355.1,3354.8,0.9036]
[1735378200504,0.29854,3355.2,3354.8,1.20217]
[1735378200702,0.29854,3355.1,3354.8,1.20217]
[1735378200905,0.446,3355.2,3355.0,0.29854]
[1735378201205,0.29852,3355.4,3355.0,0.29854]
[1735378201708,0.29853,3355.3,3354.9,0.29855]
[1735378201897,0.29852,3355.4,3355.0,0.29855]
[1735378202809,0.29852,3355.3,3355.0,0.29855]
[1735378203905,3.2078,3355.5,3355.1,0.29854]
[1735378204107,0.29852,3355.4,3355.0,0.29855]
[1735378204802,3.2078,3355.5,3355.0,0.29855]
[1735378205004,3.2078,3355.9,3355.2,1.57852708]
[1735378205500,4.5756,3356.5,3355.6,3.2078]
[1735378205698,0.29843,3356.4,3356.1,0.29845]
[1735378205908,4.87402,3356.5,3356.1,0.29845]
[1735378206209,0.29843,3356.4,3356.0,0.29846]
[1735378206509,0.29843,3356.4,3355.7,0.9303]
[1735378206711,0.29843,3356.4,3356.0,0.29845]
[1735378208508,4.5756,3356.5,3356.0,0.29845]
[1735378208707,4.5756,3356.5,3355.7,0.9303]
[1735378208908,0.29844,3356.3,3355.9,0.29846]
[1735378209113,4.5756,3356.5,3355.7,0.9303]
[1735378209311,0.29845,3356.2,3355.8,0.29847]
[1735378209610,1.57852708,3356.0,3355.6,3.2078]
[1735378209805,0.29849,3355.7,3355.6,3.2078]
[1735378210314,0.4637,3355.9,3355.6,3.2078]
[1735378210515,0.4637,3355.9,3355.7,0.29848]
[1735378210915,4.1161,3356.5,3355.6,3.2078]
[1735378211213,4.1161,3356.5,3356.1,0.29845]
[1735378211214,4.41452,3356.5,3356.1,0.29845]
[1735378211412,4.1161,3356.5,3355.7,0.4257]
[1735378211816,0.29843,3356.4,3356.0,0.29846]